bitfinex-derivatives/quotes_SOLF0:USTF0_20250310
["timestamp","ask_amount","ask_price","bid_price","bid_amount"]
[1741646516648,20.85068574,118.31,118.27,102.18805447]
[1741646517050,0.06163969,118.3,118.28,0.05710255]
[1741646518150,20.85068574,118.29,118.27,93.72915447]
[1741646518553,20.85068574,118.29,118.24,8.4609]
[1741646518755,56.33068574,118.29,118.24,8.4609]
[1741646519151,56.33068574,118.29,118.25,8.4602]
[1741646519354,56.33068574,118.29,118.25,8.51610528]
[1741646519550,0.06187489,118.28,118.25,0.05590528]
[1741646520647,0.06187489,118.28,118.25,8.51650528]
[1741646521150,20.85068574,118.27,118.25,0.05590528]
[1741646521858,20.85068574,118.27,118.21,281.0213]
[1741646521859,20.85068574,118.27,118.21,278.82]
[1741646522158,20.85068574,118.27,118.23,8.4621]
[1741646522357,20.85068574,118.29,118.22,35.48]
[1741646522557,20.85068574,118.27,118.22,35.48]
[1741646522756,20.85068574,118.25,118.18,2.1287]
[1741646522955,20.85068574,118.23,118.16,280.9843]
[1741646523154,20.85068574,118.21,118.2,0.05494211]
[1741646523355,0.06204757,118.21,118.2,0.05494211]
[1741646523556,0.06204757,118.21,118.2,8.51914211]
[1741646524662,0.06204757,118.21,118.2,0.05494211]
[1741646524858,0.06204757,118.21,118.17,35.48]
[1741646524859,20.91273331,118.21,118.17,35.48]
[1741646525161,0.06204757,118.21,118.19,8.4643]
[1741646525357,0.06204757,118.21,118.17,35.48]
[1741646525760,0.06204757,118.21,118.18,8.4651]
[1741646526063,0.06204757,118.21,118.18,0.06004358]
[1741646526467,20.91273331,118.21,118.18,0.06004358]
[1741646526963,20.85068574,118.19,118.18,0.06004358]
[1741646527153,20.85068574,118.19,118.13,37.6287]
[1741646527354,20.85068574,118.19,118.16,8.4667]
[1741646527759,20.85068574,118.19,118.13,37.6287]
[1741646527963,20.85068574,118.19,118.16,8.4667]
[1741646528462,0.06270325,118.19,118.17,8.466]
[1741646528660,0.06270325,118.19,118.16,0.05406918]
[1741646529261,20.91338899,118.19,118.16,0.05406918]
[1741646529865,8.4664,118.17,118.16,0.05406918]
[1741646530664,20.85068574,118.17,118.11,279.0]
[1741646530963,8.4676,118.16,118.12,8.4695]
[1741646531267,29.31728574,118.17,118.13,8.4689]
[1741646531463,39.6796,118.18,118.11,314.5]
[1741646531660,2.0866,118.18,118.12,20.85068574]
[1741646531865,0.05719699,118.16,118.15,8.4678]
[1741646532166,20.85068574,118.21,118.14,56.35068574]
[1741646532466,0.05816307,118.17,118.16,8.4671]
[1741646532658,20.85068574,118.21,118.14,56.35068574]
[1741646532859,0.05383621,118.18,118.17,8.466]
[1741646533259,0.05383621,118.18,118.14,56.35068574]
[1741646533459,0.05383621,118.18,118.16,0.0646211]
[1741646533661,0.05383621,118.18,118.17,8.4664]
[1741646533864,0.05383621,118.18,118.16,0.0646211]
[1741646534065,0.05383621,118.18,118.16,8.5315211]
[1741646534267,0.05383621,118.18,118.16,0.0646211]
[1741646535472,0.05383621,118.18,118.16,8.5316211]
[1741646535675,0.05383621,118.18,118.16,0.0646211]
[1741646536170,33.47303946,118.18,118.16,0.0646211]
[1741646536370,8.4664,118.17,118.16,0.0646211]
[1741646536766,8.4671,118.16,118.14,35.5]
[1741646536971,33.47303946,118.18,118.11,279.0]
[1741646537178,2.1599,118.17,118.11,279.0]
[1741646537867,0.05890145,118.15,118.13,0.0581816]
[1741646538775,0.05890145,118.15,118.13,8.5268816]
[1741646539472,0.05890145,118.15,118.14,8.4685]
[1741646540175,0.05890145,118.15,118.13,0.0581816]
[1741646541176,0.05890145,118.15,118.14,8.4685]
[1741646542477,0.05890145,118.15,118.13,0.0581816]
[1741646543673,8.52680145,118.15,118.13,0.0581816]
[1741646543982,0.05890145,118.15,118.13,0.0581816]
[1741646545375,33.41920325,118.14,118.1,8.4711]
[1741646545777,41.88790325,118.14,118.11,8.4706]
[1741646546483,41.88790325,118.14,118.11,8.5267821]
[1741646546986,41.88790325,118.14,118.11,0.0561821]
[1741646547385,33.41920325,118.14,118.11,0.0561821]
[1741646548183,8.47,118.12,118.11,0.0561821]
[1741646548877,33.41920325,118.14,118.11,0.0561821]
[1741646549282,0.05890145,118.15,118.11,0.0561821]
[1741646549882,0.05890145,118.15,118.11,35.5561821]
[1741646550384,41.88240325,118.22,118.19,8.4649]
[1741646550680,2.1383,118.24,118.2,35.5]
[1741646550887,41.87800325,118.28,118.23,8.4621]
[1741646551489,0.05800456,118.27,118.25,8.4606]
[1741646551787,0.05800456,118.27,118.24,0.05365658]
[1741646551987,0.05800456,118.27,118.25,8.46]
[1741646552186,0.05800456,118.27,118.24,0.05365658]
[1741646552579,0.05800456,118.27,118.26,8.46]
[1741646552893,0.05800456,118.27,118.26,35.5]
[1741646553187,0.05800456,118.27,118.26,43.96]
[1741646553378,0.05800456,118.27,118.26,35.5]
[1741646553984,0.05800456,118.27,118.24,0.05365658]
[1741646556595,8.51730456,118.27,118.24,0.05365658]
[1741646556788,0.05800456,118.27,118.24,0.05365658]
[1741646557989,0.05800456,118.27,118.24,8.51505658]
[1741646558394,0.05800456,118.27,118.24,0.05365658]
[1741646560695,8.4607,118.25,118.24,0.05365658]
[1741646561490,43.96450325,118.26,118.24,0.05365658]
[1741646561809,2.085,118.26,118.24,0.05365658]
[1741646563093,10.5453,118.26,118.24,0.05365658]
[1741646563292,2.085,118.26,118.24,0.05365658]
[1741646563597,8.4607,118.25,118.24,0.05365658]
[1741646564497,2.16720456,118.27,118.24,8.51445658]
[1741646564795,0.05800456,118.27,118.24,0.05365658]
[1741646566396,0.05800456,118.27,118.25,8.4603]
[1741646567098,0.05800456,118.27,118.24,0.05365658]
[1741646567298,8.46,118.26,118.24,0.05365658]
[1741646567798,8.4607,118.25,118.24,0.05365658]
[1741646568297,8.4603,118.26,118.24,0.05365658]
[1741646568497,0.05800456,118.27,118.24,0.05365658]
[1741646569703,8.51730456,118.27,118.24,8.51485658]
[1741646570399,8.51730456,118.27,118.24,0.05365658]
[1741646570699,0.05800456,118.27,118.24,0.05365658]
[1741646571101,0.05800456,118.27,118.24,8.51465658]
[1741646571599,0.05800456,118.27,118.24,0.05365658]
[1741646571791,0.05800456,118.27,118.25,35.44]
[1741646572197,0.05800456,118.27,118.26,8.46]
[1741646572705,20.85236468,118.33,118.25,58.40716468]
[1741646572907,29.30746468,118.33,118.29,8.4574]
[1741646573199,29.30746468,118.33,118.29,43.8974]
[1741646573499,20.85236468,118.33,118.3,8.4567]
[1741646573691,10.676,118.34,118.29,35.44]
[1741646573897,0.05886247,118.33,118.3,0.05842929]
[1741646575106,8.4564,118.31,118.3,0.05842929]
[1741646576003,8.4561,118.32,118.3,0.05842929]
[1741646576204,0.05886247,118.33,118.3,0.05842929]
[1741646576695,8.51416247,118.33,118.3,0.05842929]
[1741646576901,0.05886247,118.33,118.3,0.05842929]
[1741646577096,0.05886247,118.33,118.31,8.4557]
[1741646577502,0.05886247,118.33,118.3,0.05842929]
[1741646578002,6.247e-05,118.33,118.32,8.4557]
[1741646578196,6.247e-05,118.33,118.32,43.8757]
[1741646578506,6.247e-05,118.33,118.32,46.4157]
[1741646579207,6.247e-05,118.33,118.32,79.75984498]
[1741646579407,6.247e-05,118.33,118.32,77.21984498]
[1741646580901,6.247e-05,118.33,118.32,78.76080416]
[1741646581107,6.247e-05,118.33,118.32,77.21984498]
[1741646581909,6.247e-05,118.33,118.32,43.8757]
[1741646583200,6.247e-05,118.33,118.32,35.42]
[1741646584002,6.247e-05,118.33,118.32,43.8757]
[1741646587212,33.34414498,118.44,118.32,72.84512414]
[1741646587410,33.34414498,118.5,118.32,72.84512414]
[1741646587411,33.34414498,118.46,118.36,33.34414498]
[1741646587716,8.4465,118.45,118.41,8.4491]
[1741646588014,33.34414498,118.46,118.41,35.4]
[1741646588212,6.3552,118.47,118.41,35.4]
[1741646588412,0.06094787,118.45,118.42,0.05478366]
[1741646589715,8.4476,118.44,118.42,0.05478366]
[1741646590017,8.4476,118.44,118.41,35.38]
[1741646590018,33.34414498,118.44,118.41,35.38]
[1741646590312,8.45,118.4,118.38,35.38]
[1741646590509,33.34414498,118.42,118.38,35.38]
[1741646591110,0.06373768,118.41,118.39,0.05551755]
[1741646591410,8.4504,118.4,118.39,0.05551755]
[1741646593011,33.34414498,118.4,118.35,35.38]
[1741646593205,8.4522,118.37,118.35,35.38]
[1741646594014,33.34414498,118.38,118.32,278.74]
[1741646594217,33.34414498,118.36,118.3,35.38]
[1741646595012,33.34414498,118.36,118.3,43.837]
[1741646595412,33.34414498,118.36,118.3,35.38]
[1741646595613,8.455,118.33,118.32,0.060515]
[1741646596016,0.05824723,118.34,118.32,0.060515]
[1741646596708,8.4549,118.33,118.32,0.060515]
[1741646596912,33.40239221,118.34,118.32,0.060515]
[1741646597308,33.40239221,118.34,118.22,1.47074361]
[1741646597513,33.34414498,118.29,118.23,1.54207625]
[1741646597812,33.34414498,118.29,118.21,35.38]
[1741646598113,33.34414498,118.27,118.21,35.38]
[1741646598319,8.4618,118.24,118.19,39.6635]
[1741646598517,33.4046408,118.25,118.23,0.06506861]
[1741646598815,33.34414498,118.25,118.18,314.12]
[1741646599020,8.4627,118.23,118.18,314.12]
[1741646599223,68.72414498,118.25,118.18,314.12]
[1741646599418,77.18534498,118.25,118.19,8.4644]
[1741646599921,0.05807004,118.23,118.21,0.05694816]
[1741646600518,8.4628,118.22,118.21,0.05694816]
[1741646600722,33.40221502,118.23,118.16,12.7196]
[1741646600916,35.38,118.22,118.16,8.467]
[1741646601121,35.38,118.22,118.14,35.38]
[1741646601122,8.4637,118.21,118.14,35.38]
[1741646601324,35.38,118.22,118.14,35.38]
[1741646601520,33.34414498,118.23,118.14,35.38]
[1741646601722,8.4635,118.21,118.14,35.38]
[1741646602022,0.05476527,118.2,118.17,0.05836323]
[1741646602424,0.05476527,118.2,118.17,35.43836323]
[1741646604121,0.05476527,118.2,118.17,0.05836323]
[1741646606321,0.05476527,118.2,118.17,8.52436323]
[1741646606724,0.05476527,118.2,118.18,35.38]
[1741646607227,0.05476527,118.2,118.17,0.05836323]
[1741646608021,0.05476527,118.2,118.17,8.52446323]
[1741646608425,0.05476527,118.2,118.17,0.05836323]
[1741646609526,8.51906527,118.2,118.17,0.05836323]
[1741646610130,8.465,118.19,118.17,0.05836323]
[1741646610316,33.34414498,118.19,118.13,280.9652]
[1741646610724,8.4664,118.17,118.13,289.434]
[1741646611118,33.34414498,118.19,118.13,278.78]
[1741646611324,8.4675,118.16,118.12,8.4697]
[1741646611519,8.4675,118.16,118.15,0.05421785]
[1741646612229,41.86974181,118.17,118.15,0.05421785]
[1741646612923,33.40304181,118.17,118.15,0.05421785]
[1741646613131,0.05889683,118.17,118.15,0.05421785]
[1741646613722,0.05889683,118.17,118.16,8.4671]
[1741646614123,0.05889683,118.17,118.15,0.05421785]
[1741646614723,8.52589683,118.17,118.15,0.05421785]
[1741646615429,0.05889683,118.17,118.15,0.05421785]
[1741646617527,8.52529683,118.17,118.15,0.05421785]
[1741646618233,0.05889683,118.17,118.15,0.05421785]
[1741646620042,0.05889683,118.17,118.15,8.52161785]
[1741646620246,0.05889683,118.17,118.15,0.05421785]
[1741646622145,0.05889683,118.17,118.15,8.52191785]
[1741646623047,0.05889683,118.17,118.16,8.4671]
[1741646624337,0.00079393,118.17,118.16,8.4671]
[1741646627947,2.2281,118.23,118.15,37.62811785]
[1741646628149,33.34414498,118.27,118.16,35.42064498]
[1741646628851,8.4608,118.25,118.22,8.4627]
[1741646629049,33.34414498,118.25,118.19,35.38]
[1741646629357,33.34414498,118.25,118.22,0.06020208]
[1741646629546,8.52648273,118.23,118.22,0.06020208]
[1741646630143,33.40802771,118.23,118.19,35.38]
[1741646630349,8.464,118.21,118.17,43.846]
[1741646630650,33.40802771,118.23,118.17,35.38]
[1741646630651,33.34414498,118.23,118.17,35.38]
[1741646630849,8.4648,118.2,118.17,35.38]
[1741646631353,8.52365118,118.2,118.17,35.43978738]
[1741646632655,8.52365118,118.2,118.17,43.90618738]
[1741646635352,8.4654,118.19,118.17,35.43978738]
[1741646635557,0.05885118,118.2,118.17,0.05978738]
[1741646635954,8.4655,118.19,118.17,0.05978738]
[1741646637360,0.05885118,118.2,118.18,8.4655]
[1741646637548,0.05885118,118.2,118.17,0.05978738]
[1741646640059,8.4657,118.18,118.17,0.05978738]
[1741646640254,29.36239773,118.18,118.17,0.05978738]
[1741646641160,8.4675,118.16,118.14,279.18]
[1741646641460,20.89669773,118.16,118.13,43.8291]
[1741646641661,20.89669773,118.16,118.12,8.4694]
[1741646641862,20.89669773,118.16,118.12,35.36]
[1741646642062,8.4681,118.15,118.12,35.36]
[1741646642265,8.52553026,118.15,118.13,0.05860268]
[1741646643763,29.36519773,118.14,118.13,0.05860268]
[1741646644260,33.46969342,118.14,118.09,279.16]
[1741646644469,68.82969342,118.14,118.07,95.84095447]
[1741646644766,8.4718,118.1,118.07,93.72915447]
[1741646644965,33.46969342,118.12,118.07,93.72915447]
[1741646645365,8.4722,118.09,118.08,0.02182042]
[1741646645667,33.46969342,118.1,118.07,93.72915447]
[1741646645866,35.50009342,118.1,118.07,93.72915447]
[1741646646068,8.4728,118.08,118.07,93.72915447]
[1741646646264,41.94249342,118.08,118.07,93.72915447]
[1741646646463,41.94249342,118.08,118.07,14.99275447]
[1741646647458,4.0491,118.1,118.02,35.36]
[1741646647459,37.51879342,118.1,118.02,35.36]
[1741646647663,8.4726,118.09,118.02,35.36]
[1741646647861,0.06073946,118.07,118.02,35.36]
[1741646648568,0.06073946,118.07,118.05,8.4744]
[1741646649068,8.53443946,118.07,118.03,8.476]
[1741646649267,8.53443946,118.07,118.02,35.36]
[1741646649665,8.53443946,118.07,118.03,8.4761]
[1741646650473,33.46969342,118.05,118.0,39.5333]
[1741646650871,8.4773,118.02,117.99,279.2]
[1741646651074,8.4773,118.02,117.99,314.56]
[1741646651268,0.05814528,118.04,117.96,4.4484]
[1741646651269,33.46969342,118.03,117.96,39.8084]
[1741646651462,33.46969342,118.01,117.96,39.8084]
[1741646651671,33.46969342,117.99,117.96,4.4484]
[1741646651870,0.06392788,118.0,117.96,4.4484]
[1741646652074,8.54292788,118.0,117.96,12.9295]
[1741646652371,0.06392788,118.0,117.94,279.3]
[1741646652771,33.46969342,117.98,117.92,35.38]
[1741646653273,0.06189329,117.96,117.94,8.4825]
[1741646653574,0.06189329,117.96,117.92,35.38]
[1741646653874,0.06189329,117.96,117.95,8.4822]
[1741646654465,0.06189329,117.96,117.95,43.8622]
[1741646654866,33.46969342,118.01,117.98,8.48]
[1741646655068,46.25719342,118.03,117.98,43.86]
[1741646655474,8.4773,118.02,117.98,35.38]
[1741646655874,37.78059342,118.03,117.98,35.38]
[1741646656069,0.05513857,118.01,117.99,0.06189329]
[1741646656570,37.71489342,118.08,117.99,4.20229329]
[1741646656964,37.71489342,118.08,117.99,4.1404]
[1741646657165,8.4767,118.03,117.99,4.1404]
[1741646657373,8.4767,118.03,117.98,35.38]
[1741646657565,0.05362535,118.02,118.0,0.05724987]
[1741646657969,8.53092535,118.02,118.0,0.05724987]
[1741646658465,0.05362535,118.02,118.0,0.05724987]
[1741646658868,0.05362535,118.02,118.01,35.38]
[1741646659275,2.0567,118.09,118.01,71.38969342]
[1741646659476,2.1327,118.11,118.01,70.97219342]
[1741646659669,2.1327,118.11,118.08,8.4727]
[1741646659870,4.384,118.13,118.06,35.38]
[1741646660074,33.46969342,118.14,118.06,35.38]
[1741646660276,33.46969342,118.14,118.1,8.471]
[1741646660570,0.06192754,118.11,118.1,8.471]
[1741646660769,0.06192754,118.11,118.09,35.43407295]
[1741646660770,0.06192754,118.11,118.09,43.90557295]
[1741646660968,0.06192754,118.11,118.09,35.43407295]
[1741646661170,4.384,118.17,118.1,279.46]
[1741646661171,2.2113,118.17,118.1,279.46]
[1741646661368,33.46969342,118.18,118.12,8.4697]
[1741646661573,33.46969342,118.18,118.13,35.36]
[1741646662380,0.06236862,118.17,118.14,0.06100384]
[1741646662975,0.06236862,118.17,118.14,8.52940384]
[1741646663175,0.06236862,118.17,118.14,0.06100384]
[1741646664278,0.06236862,118.17,118.15,8.4673]
[1741646664481,0.06236862,118.17,118.16,35.36]
[1741646666578,44.03199342,118.22,118.17,8.4663]
[1741646666780,44.03199342,118.22,118.16,35.36]
[1741646666781,35.56909342,118.22,118.16,35.36]
[1741646667682,0.06294782,118.2,118.18,0.05531836]
[1741646668281,33.53264124,118.2,118.18,0.05531836]
[1741646668482,8.465,118.19,118.18,0.05531836]
[1741646670383,8.4682,118.15,118.13,35.34]
[1741646670780,33.46969342,118.18,118.13,35.34]
[1741646671585,0.06246989,118.17,118.14,0.05796117]
[1741646672480,8.4678,118.15,118.14,0.05796117]
[1741646673287,0.06246989,118.17,118.14,0.05796117]
[1741646674188,33.46969342,118.16,118.14,0.05796117]
[1741646674394,70.96899342,118.16,118.06,35.34]
[1741646674684,70.96899342,118.16,118.04,4.1871]
[1741646674685,33.46969342,118.12,118.05,35.32]
[1741646674885,33.46969342,118.12,118.04,4.1871]
[1741646675091,33.46969342,118.12,118.05,35.32]
[1741646675582,0.05359879,118.1,118.07,8.53621473]
[1741646676187,8.52509879,118.1,118.07,0.06321473]
[1741646676388,0.05359879,118.1,118.07,0.06321473]
[1741646676887,8.4728,118.08,118.07,0.06321473]
[1741646677480,33.52329221,118.1,118.03,316.7382]
[1741646677685,8.474,118.07,118.03,316.7382]
[1741646678388,8.474,118.07,118.04,8.4757]
[1741646678785,8.52851148,118.07,118.04,0.06394785]
[1741646680494,8.52851148,118.07,118.04,8.53964785]
[1741646680791,0.05451148,118.07,118.04,0.06394785]
[1741646681684,0.05451148,118.07,118.06,8.4743]
[1741646681993,0.05451148,118.07,118.06,43.8143]
[1741646682182,39.5649,118.14,118.08,8.4724]
[1741646682183,73.03459342,118.14,118.08,8.4724]
[1741646682492,73.03459342,118.14,118.06,35.34]
[1741646682789,73.03459342,118.14,118.06,43.8137]
[1741646683083,8.4718,118.1,118.06,43.8137]
[1741646683289,8.4718,118.1,118.09,0.06195184]
[1741646683487,0.0551055,118.11,118.09,0.06195184]
[1741646684393,8.5259055,118.11,118.09,0.06195184]
[1741646685490,0.0551055,118.11,118.09,0.06195184]
[1741646686091,8.5260055,118.11,118.09,0.06195184]
[1741646686495,0.0551055,118.11,118.09,0.06195184]
[1741646687892,8.5259055,118.11,118.09,0.06195184]
[1741646688092,0.0551055,118.11,118.09,0.06195184]
[1741646688291,8.4714,118.1,118.09,0.06195184]
[1741646688494,0.0551055,118.11,118.09,0.06195184]
[1741646688994,8.5262055,118.11,118.09,0.06195184]
[1741646689789,0.0551055,118.11,118.09,0.06195184]
[1741646690397,0.0551055,118.11,118.09,8.53365184]
[1741646690785,0.0551055,118.11,118.09,35.38195184]
[1741646690991,8.5260055,118.11,118.09,0.06195184]
[1741646691690,8.4714,118.1,118.09,0.06195184]
[1741646692396,33.46969342,118.1,118.03,321.056]
[1741646692596,35.61029342,118.1,118.03,314.6]
[1741646692998,8.474,118.07,118.03,279.28]
[1741646693297,8.474,118.07,118.04,8.4754]
[1741646693493,0.06188007,118.06,118.04,8.53100802]
[1741646698801,0.06188007,118.06,118.05,8.475]
[1741646700000,68.78969342,118.12,118.07,8.4731]
[1741646700001,8.4711,118.11,118.07,8.4731]
[1741646700197,8.4711,118.11,118.07,35.32]
[1741646700889,39.83939342,118.14,118.07,35.32]
[1741646701201,0.05635918,118.1,118.08,0.05433696]
[1741646702694,0.05635918,118.1,118.08,8.52713696]
[1741646703100,0.05635918,118.1,118.08,0.05433696]
[1741646703301,0.05635918,118.1,118.09,8.4721]
[1741646703594,0.05635918,118.1,118.08,0.05433696]
[1741646704297,0.05635918,118.1,118.08,8.52683696]
[1741646704490,0.05635918,118.1,118.08,0.05433696]
[1741646704806,0.05635918,118.1,118.08,8.52683696]
[1741646705003,0.05635918,118.1,118.08,0.05433696]
[1741646705200,8.52785918,118.1,118.08,0.05433696]
[1741646707103,0.05635918,118.1,118.08,0.05433696]
[1741646707300,0.05635918,118.1,118.09,8.4721]
[1741646707500,4.3196,118.17,118.08,0.05433696]
[1741646707699,4.3196,118.17,118.09,33.46969342]
[1741646707898,33.46969342,118.2,118.11,33.46969342]
[1741646708198,11.56167918,118.21,118.13,33.46969342]
[1741646708403,11.56167918,118.21,118.19,8.4649]
[1741646708604,8.4651,118.19,118.17,35.3]
[1741646708806,11.61780871,118.21,118.17,43.766]
[1741646709009,0.05612953,118.21,118.17,43.82415675]
[1741646709508,0.05612953,118.21,118.17,35.35815675]
[1741646709908,11.56167918,118.25,118.17,68.82785017]
[1741646710297,11.56167918,118.25,118.17,68.76969342]
[1741646710502,11.56167918,118.25,118.21,8.4635]
[1741646710697,11.56167918,118.25,118.21,43.7635]
[1741646711004,11.56167918,118.25,118.21,35.3]
[1741646711202,0.06127814,118.24,118.22,0.06373159]
[1741646712001,0.06127814,118.24,118.22,35.36373159]
[1741646712308,39.4606,118.31,118.22,35.36373159]
[1741646712309,35.67449342,118.3,118.22,35.36373159]
[1741646712504,4.1606,118.31,118.23,33.46969342]
[1741646712704,33.46969342,118.3,118.24,2.1198]
[1741646712900,33.46969342,118.3,118.25,35.28]
[1741646713100,8.459,118.28,118.25,35.28]
[1741646713310,0.055726,118.29,118.26,0.06478088]
[1741646713609,8.514026,118.29,118.26,0.06478088]
[1741646714107,0.055726,118.29,118.26,0.06478088]
[1741646715115,8.4551,118.33,118.26,279.32478088]
[1741646715310,35.67449342,118.34,118.26,279.32478088]
[1741646715612,35.67449342,118.34,118.26,279.26]
[1741646716009,8.4559,118.32,118.27,8.4588]
[1741646716309,0.0566152,118.31,118.29,0.05623041]
[1741646716604,33.46969342,118.36,118.29,0.05623041]
[1741646716909,33.46969342,118.34,118.29,0.05623041]
[1741646717106,33.46969342,118.34,118.28,35.26]
[1741646717809,0.05819259,118.32,118.3,0.06393454]
[1741646718010,33.52788601,118.32,118.3,0.06393454]
[1741646718313,8.4564,118.31,118.3,0.06393454]
[1741646718907,41.98378601,118.32,118.3,0.06393454]
[1741646719113,0.05819259,118.32,118.3,0.06393454]
[1741646719514,8.4564,118.31,118.3,0.06393454]
[1741646720611,37.78,118.31,118.22,2.1882]
[1741646720812,33.46969342,118.27,118.2,279.08]
[1741646721013,8.4629,118.22,118.19,35.24]
[1741646721317,33.46969342,118.25,118.19,35.24]
[1741646721719,33.46969342,118.25,118.21,0.06207799]
[1741646721720,0.06082972,118.23,118.21,0.06207799]
[1741646722015,33.53052314,118.23,118.21,0.06207799]
[1741646722321,33.53052314,118.23,118.15,314.28]
[1741646722520,33.46969342,118.2,118.15,314.28]
[1741646722917,33.46969342,118.2,118.15,35.24]
[1741646723116,33.46969342,118.2,118.13,35.24]
[1741646723321,33.46969342,118.18,118.11,35.24]
[1741646723522,8.4684,118.15,118.11,35.24]
[1741646723718,33.46969342,118.16,118.11,35.24]
[1741646723918,33.46969342,118.16,118.08,42.44174811]
[1741646724519,8.468,118.15,118.09,8.4719]
[1741646724721,0.05638013,118.13,118.11,0.05440837]
[1741646725227,0.05638013,118.13,118.11,8.52500837]
[1741646725418,0.05638013,118.13,118.11,35.29440837]
[1741646725821,0.05638013,118.13,118.11,43.76490837]
[1741646727021,0.05638013,118.13,118.11,35.29440837]
[1741646727223,0.05638013,118.13,118.11,0.05440837]
[1741646728523,2.1594,118.18,118.12,35.26]
[1741646728725,2.114,118.19,118.14,8.4685]
[1741646729029,2.114,118.19,118.12,35.26]
[1741646729422,33.46969342,118.18,118.12,35.26]
[1741646729623,33.46969342,118.18,118.11,35.24]
[1741646729819,33.46969342,118.18,118.14,0.06220383]
[1741646729820,8.4678,118.15,118.14,0.06220383]
[1741646731026,33.53095006,118.16,118.09,35.26]
[1741646731226,33.46969342,118.14,118.09,35.26]
[1741646731926,33.46969342,118.16,118.09,35.26]
[1741646732428,0.05359619,118.14,118.11,0.05793593]
[1741646732625,0.05359619,118.14,118.12,35.24]
[1741646735330,0.05359619,118.14,118.12,43.7094]
[1741646736030,0.05359619,118.14,118.13,8.4693]
[1741646736238,33.46969342,118.2,118.12,35.24]
[1741646736731,8.4658,118.18,118.14,8.4683]
[1741646737441,0.05750817,118.17,118.15,0.06148317]
[1741646740135,8.4671,118.16,118.15,0.06148317]
[1741646740335,41.93679342,118.16,118.15,0.06148317]
[1741646740536,71.24969342,118.16,118.09,1.54403902]
[1741646740737,33.46969342,118.13,118.06,35.24]
[1741646741040,33.46969342,118.11,118.06,35.24]
[1741646741240,8.473,118.08,118.05,279.1]
[1741646741442,8.473,118.08,118.05,314.34]
[1741646741641,0.05534331,118.08,118.05,314.39747875]
[1741646742039,0.05534331,118.08,118.05,279.15747875]
[1741646742239,0.05534331,118.08,118.06,35.24]
[1741646742738,0.05534331,118.08,118.07,8.4736]
[1741646742945,41.93929342,118.13,118.06,35.24]
[1741646743242,37.78759342,118.15,118.06,35.24]
[1741646743443,33.46969342,118.17,118.07,35.01384955]
[1741646743638,33.46969342,118.17,118.07,33.46969342]
[1741646743835,8.4682,118.15,118.1,8.4709]
[1741646744042,0.058272,118.13,118.11,35.31916038]
[1741646744336,0.058272,118.13,118.11,43.78986038]
[1741646744540,0.058272,118.13,118.11,35.31916038]
[1741646744741,0.058272,118.13,118.11,0.05916038]
[1741646744945,8.47,118.12,118.11,0.05916038]
[1741646745940,33.52796542,118.13,118.11,0.05916038]
[1741646746241,0.058272,118.13,118.11,0.05916038]
[1741646747249,8.527872,118.13,118.11,0.05916038]
[1741646747446,0.058272,118.13,118.11,35.31916038]
[1741646747945,0.058272,118.13,118.12,8.47]
[1741646748247,6.3182,118.19,118.11,35.31916038]
[1741646748448,8.4657,118.18,118.14,8.4679]
[1741646748650,6.3182,118.19,118.14,35.26]
[1741646749044,6.3182,118.19,118.12,35.26]
[1741646749245,33.46969342,118.18,118.12,35.26]
[1741646749439,0.0642093,118.17,118.14,0.06273637]
[1741646749643,8.4679,118.15,118.14,0.06273637]
[1741646750649,0.0642093,118.17,118.14,0.06273637]
[1741646751154,0.0642093,118.17,118.14,8.53083637]
[1741646751852,0.0642093,118.17,118.14,0.06273637]
[1741646752147,0.0642093,118.17,118.15,35.24]
[1741646752353,6.3795,118.23,118.15,68.70969342]
[1741646752541,8.4617,118.24,118.16,4.2258]
[1741646752749,4.2432,118.26,118.16,4.2258]
[1741646753049,4.2432,118.26,118.18,8.4651]
[1741646753242,4.2432,118.26,118.19,35.24]
[1741646753749,8.4633,118.22,118.21,0.06175752]
[1741646754451,0.05714578,118.23,118.21,0.06175752]
[1741646755049,8.51954578,118.23,118.21,0.06175752]
[1741646755645,8.4628,118.22,118.21,0.06175752]
[1741646757255,0.05714578,118.23,118.21,0.06175752]
[1741646757458,8.51934578,118.23,118.21,0.06175752]
[1741646758557,0.05714578,118.23,118.21,0.06175752]